[Event "Titled Tuesday Blitz March 22 Early 2022"]
[White "Lauridsen, Jesper Morch"]
[Black "Reprintsev, Alexander"]
[WhiteFideId "1401890"]
[BlackFideId "14100541"]
[WhiteElo "2240"]
[BlackElo "2108"]
[Result "0-1"]
[Round "03"]
[TimeControl "180+1"]
[Date "2022.03.22"]
[WhiteClock "0:00:10"]
[BlackClock "0:00:43"]

1. e4 {[%clk 0:03:00]}  d5 {[%clk 0:02:59]} 2. exd5 {[%clk 0:03:00]}  Qxd5 {[%clk 0:02:54]} 3. Nf3 {[%clk 0:03:00]}  Bg4 {[%clk 0:02:53]} 4. Be2 {[%clk 0:02:59]}  Nc6 {[%clk 0:02:52]} 5. d4 {[%clk 0:02:56]}  O-O-O {[%clk 0:02:51]} 6. Be3 {[%clk 0:02:50]}  e5 {[%clk 0:02:49]} 7. c4 {[%clk 0:02:46]}  Qa5+ {[%clk 0:02:45]} 8. Bd2 {[%clk 0:02:45]}  Qa6 {[%clk 0:02:40]} 9. d5 {[%clk 0:02:40]}  Bxf3 {[%clk 0:02:32]} 10. Bxf3 {[%clk 0:02:39]}  Nd4 {[%clk 0:02:32]} 11. Be2 {[%clk 0:02:06]}  Nf6 {[%clk 0:02:23]} 12. O-O {[%clk 0:02:04]}  Nxe2+ {[%clk 0:02:22]} 13. Qxe2 {[%clk 0:02:04]}  Rxd5 {[%clk 0:02:12]} 14. Nc3 {[%clk 0:01:56]}  Rd7 {[%clk 0:02:10]} 15. Rad1 {[%clk 0:01:53]}  Bb4 {[%clk 0:02:04]} 16. Qxe5 {[%clk 0:01:45]}  Qxc4 {[%clk 0:01:57]} 17. Bg5 {[%clk 0:01:09]}  Re8 {[%clk 0:01:29]} 18. Qf5 {[%clk 0:01:08]}  Qe6 {[%clk 0:01:23]} 19. Qxe6 {[%clk 0:00:45]}  Rxe6 {[%clk 0:01:21]} 20. Bxf6 {[%clk 0:00:41]}  gxf6 {[%clk 0:01:09]} 21. Nd5 {[%clk 0:00:29]}  Red6 {[%clk 0:00:59]} 22. Ne3 {[%clk 0:00:23]}  Rxd1 {[%clk 0:00:56]} 23. Rxd1 {[%clk 0:00:23]}  Rxd1+ {[%clk 0:00:55]} 24. Nxd1 {[%clk 0:00:23]}  Kd7 {[%clk 0:00:55]} 25. g4 {[%clk 0:00:22]}  Bc5 {[%clk 0:00:54]} 26. Nc3 {[%clk 0:00:21]}  Bd4 {[%clk 0:00:54]} 27. Nd1 {[%clk 0:00:15]}  Ke6 {[%clk 0:00:53]} 28. Kg2 {[%clk 0:00:16]}  Kd5 {[%clk 0:00:53]} 29. Kf3 {[%clk 0:00:16]}  c5 {[%clk 0:00:51]} 30. Kf4 {[%clk 0:00:16]}  b5 {[%clk 0:00:49]} 31. Kf5 {[%clk 0:00:16]}  c4 {[%clk 0:00:47]} 32. Nc3+ {[%clk 0:00:14]}  Bxc3 {[%clk 0:00:47]} 33. bxc3 {[%clk 0:00:14]}  b4 {[%clk 0:00:47]} 34. Kf4 {[%clk 0:00:10]}  b3 {[%clk 0:00:43]} 0-1


[Site "https://www.chess.com"]

[Event "Titled Tuesday Blitz March 22 Early 2022"]
[White "Le Ruyet, Leopold"]
[Black "Ardila, Oscar Humberto"]
[WhiteFideId "645923"]
[BlackFideId "4404742"]
[WhiteElo "2276"]
[BlackElo "1966"]
[Result "1-0"]
[Round "03"]
[TimeControl "180+1"]
[Date "2022.03.22"]
[WhiteClock "0:00:49"]
[BlackClock "0:00:16"]

1. d4 {[%clk 0:03:00]}  Nf6 {[%clk 0:02:59]} 2. c4 {[%clk 0:03:00]}  c5 {[%clk 0:02:59]} 3. d5 {[%clk 0:03:00]}  g6 {[%clk 0:02:56]} 4. Nc3 {[%clk 0:02:59]}  Bg7 {[%clk 0:02:54]} 5. e4 {[%clk 0:02:55]}  d6 {[%clk 0:02:54]} 6. f4 {[%clk 0:02:49]}  O-O {[%clk 0:02:53]} 7. Nf3 {[%clk 0:02:49]}  e6 {[%clk 0:02:52]} 8. dxe6 {[%clk 0:02:41]}  Bxe6 {[%clk 0:02:51]} 9. Be2 {[%clk 0:02:40]}  Nc6 {[%clk 0:02:51]} 10. O-O {[%clk 0:02:40]}  a6 {[%clk 0:02:50]} 11. Be3 {[%clk 0:02:26]}  Qc7 {[%clk 0:02:40]} 12. f5 {[%clk 0:02:17]}  Bd7 {[%clk 0:02:31]} 13. Bg5 {[%clk 0:02:12]}  Rfe8 {[%clk 0:01:41]} 14. Nd5 {[%clk 0:01:50]}  Nxd5 {[%clk 0:01:39]} 15. exd5 {[%clk 0:01:51]}  Ne5 {[%clk 0:01:35]} 16. f6 {[%clk 0:01:49]}  Bf8 {[%clk 0:01:29]} 17. Qd2 {[%clk 0:01:44]}  b5 {[%clk 0:01:25]} 18. Bh6 {[%clk 0:01:32]}  Ng4 {[%clk 0:01:03]} 19. Bxf8 {[%clk 0:01:26]}  Rxf8 {[%clk 0:01:04]} 20. Qf4 {[%clk 0:01:12]}  Rae8 {[%clk 0:00:55]} 21. Rae1 {[%clk 0:01:02]}  Kh8 {[%clk 0:00:39]} 22. h3 {[%clk 0:00:54]}  Ne3 {[%clk 0:00:32]} 23. Qh6 {[%clk 0:00:50]}  Rg8 {[%clk 0:00:16]} 24. Ng5 {[%clk 0:00:49]} 1-0


[Site "https://www.chess.com"]

[Event "Titled Tuesday Blitz March 22 Early 2022"]
[White "Maltsevskaya, Aleksandra"]
[Black "Grieve, Harry"]
[WhiteFideId "24174041"]
[BlackFideId "426520"]
[WhiteElo "2241"]
[BlackElo "2294"]
[Result "1-0"]
[Round "03"]
[TimeControl "180+1"]
[Date "2022.03.22"]
[WhiteClock "0:01:12"]
[BlackClock "0:00:02"]

1. e4 {[%clk 0:02:56]}  c5 {[%clk 0:02:59]} 2. Nf3 {[%clk 0:02:56]}  e6 {[%clk 0:03:00]} 3. d4 {[%clk 0:02:56]}  cxd4 {[%clk 0:03:00]} 4. Nxd4 {[%clk 0:02:57]}  Nc6 {[%clk 0:03:01]} 5. Nc3 {[%clk 0:02:57]}  Qc7 {[%clk 0:03:02]} 6. f4 {[%clk 0:02:57]}  Nxd4 {[%clk 0:03:01]} 7. Qxd4 {[%clk 0:02:58]}  b6 {[%clk 0:03:02]} 8. Be3 {[%clk 0:02:36]}  Bb7 {[%clk 0:03:02]} 9. Nb5 {[%clk 0:02:34]}  Qc6 {[%clk 0:03:01]} 10. c4 {[%clk 0:02:30]}  Nf6 {[%clk 0:02:17]} 11. e5 {[%clk 0:02:14]}  Ng4 {[%clk 0:01:52]} 12. Bg1 {[%clk 0:02:13]}  Bc5 {[%clk 0:01:46]} 13. Qd2 {[%clk 0:02:12]}  O-O {[%clk 0:01:35]} 14. h3 {[%clk 0:02:03]}  Nh6 {[%clk 0:01:35]} 15. O-O-O {[%clk 0:02:00]}  Rfd8 {[%clk 0:01:27]} 16. Nd6 {[%clk 0:01:51]}  Bxd6 {[%clk 0:00:58]} 17. exd6 {[%clk 0:01:51]}  b5 {[%clk 0:00:28]} 18. c5 {[%clk 0:01:43]}  Qa6 {[%clk 0:00:29]} 19. Kb1 {[%clk 0:01:42]}  Bd5 {[%clk 0:00:25]} 20. b3 {[%clk 0:01:33]}  Qb7 {[%clk 0:00:23]} 21. Rh2 {[%clk 0:01:26]}  a5 {[%clk 0:00:18]} 22. g4 {[%clk 0:01:23]}  b4 {[%clk 0:00:18]} 23. Bd4 {[%clk 0:01:23]}  a4 {[%clk 0:00:16]} 24. f5 {[%clk 0:01:14]}  axb3 {[%clk 0:00:15]} 25. Qg5 {[%clk 0:01:14]}  bxa2+ {[%clk 0:00:10]} 26. Ka1 {[%clk 0:01:13]}  Nxf5 {[%clk 0:00:01]} 27. gxf5 {[%clk 0:01:13]}  g6 {[%clk 0:00:02]} 28. Qf6 {[%clk 0:01:12]}  e5 {[%clk 0:00:02]} 29. Bxe5 {[%clk 0:01:12]} 1-0


[Site "https://www.chess.com"]

[Event "Titled Tuesday Blitz March 22 Early 2022"]
[White "Migot, Tangi"]
[Black "MikeKorovin"]
[WhiteFideId "662445"]
[WhiteElo "2506"]
[BlackElo "2736"]
[Result "0-1"]
[Round "03"]
[TimeControl "180+1"]
[Date "2022.03.22"]
[WhiteClock "0:00:18"]
[BlackClock "0:00:35"]

1. e4 {[%clk 0:03:00]}  e6 {[%clk 0:03:00]} 2. Nf3 {[%clk 0:03:00]}  d5 {[%clk 0:03:00]} 3. exd5 {[%clk 0:03:01]}  exd5 {[%clk 0:03:01]} 4. d4 {[%clk 0:03:01]}  Nc6 {[%clk 0:03:01]} 5. Bb5 {[%clk 0:02:59]}  Bd6 {[%clk 0:03:02]} 6. O-O {[%clk 0:02:59]}  Ne7 {[%clk 0:03:02]} 7. c4 {[%clk 0:02:59]}  dxc4 {[%clk 0:03:02]} 8. Nc3 {[%clk 0:02:58]}  a6 {[%clk 0:03:01]} 9. Bxc4 {[%clk 0:02:58]}  O-O {[%clk 0:03:00]} 10. Re1 {[%clk 0:02:56]}  Bg4 {[%clk 0:03:00]} 11. d5 {[%clk 0:02:51]}  Bxf3 {[%clk 0:02:28]} 12. Qxf3 {[%clk 0:02:50]}  Ne5 {[%clk 0:02:28]} 13. Qe2 {[%clk 0:02:50]}  Nxc4 {[%clk 0:02:28]} 14. Qxc4 {[%clk 0:02:50]}  Ng6 {[%clk 0:02:28]} 15. h3 {[%clk 0:02:22]}  Re8 {[%clk 0:02:23]} 16. Be3 {[%clk 0:02:15]}  Qf6 {[%clk 0:02:18]} 17. Ne4 {[%clk 0:02:09]}  Qe5 {[%clk 0:02:18]} 18. Nxd6 {[%clk 0:02:09]}  Qxd6 {[%clk 0:02:19]} 19. Rac1 {[%clk 0:02:05]}  Rac8 {[%clk 0:02:18]} 20. Qb3 {[%clk 0:01:56]}  b6 {[%clk 0:01:52]} 21. Rc6 {[%clk 0:01:46]}  Qd7 {[%clk 0:01:52]} 22. Rec1 {[%clk 0:01:36]}  Ne7 {[%clk 0:01:52]} 23. R6c4 {[%clk 0:01:27]}  Nxd5 {[%clk 0:01:36]} 24. Rd1 {[%clk 0:01:23]}  Qe6 {[%clk 0:01:21]} 25. Ra4 {[%clk 0:01:12]}  Nxe3 {[%clk 0:01:15]} 26. Qxe6 {[%clk 0:00:54]}  Rxe6 {[%clk 0:01:16]} 27. fxe3 {[%clk 0:00:55]}  Rxe3 {[%clk 0:01:15]} 28. Rxa6 {[%clk 0:00:54]}  Kf8 {[%clk 0:01:09]} 29. Ra7 {[%clk 0:00:50]}  Re2 {[%clk 0:01:06]} 30. b3 {[%clk 0:00:43]}  Rc2 {[%clk 0:01:04]} 31. a4 {[%clk 0:00:36]}  g6 {[%clk 0:00:57]} 32. b4 {[%clk 0:00:32]}  Re8 {[%clk 0:00:56]} 33. Rd7 {[%clk 0:00:23]}  Ree2 {[%clk 0:00:55]} 34. Raxc7 {[%clk 0:00:20]}  Rxg2+ {[%clk 0:00:54]} 35. Kf1 {[%clk 0:00:20]}  Rgf2+ {[%clk 0:00:51]} 36. Ke1 {[%clk 0:00:20]}  Rxc7 {[%clk 0:00:47]} 37. Rxc7 {[%clk 0:00:21]}  Rf4 {[%clk 0:00:45]} 38. a5 {[%clk 0:00:19]}  Rxb4 {[%clk 0:00:40]} 39. a6 {[%clk 0:00:19]}  Ra4 {[%clk 0:00:40]} 40. a7 {[%clk 0:00:20]}  Kg7 {[%clk 0:00:40]} 41. Kd2 {[%clk 0:00:19]}  b5 {[%clk 0:00:41]} 42. Kc3 {[%clk 0:00:19]}  h5 {[%clk 0:00:40]} 43. Kd3 {[%clk 0:00:19]}  g5 {[%clk 0:00:40]} 44. Rb7 {[%clk 0:00:20]}  Kg6 {[%clk 0:00:38]} 45. Ke3 {[%clk 0:00:20]}  f6 {[%clk 0:00:38]} 46. Kf3 {[%clk 0:00:20]}  Ra3+ {[%clk 0:00:37]} 47. Kg2 {[%clk 0:00:20]}  b4 {[%clk 0:00:37]} 48. Kf2 {[%clk 0:00:19]}  h4 {[%clk 0:00:36]} 49. Kg2 {[%clk 0:00:19]}  b3 {[%clk 0:00:35]} 50. Kf2 {[%clk 0:00:18]}  b2 {[%clk 0:00:35]} 51. Rxb2 {[%clk 0:00:17]}  Rxa7 {[%clk 0:00:35]} 52. Rb8 {[%clk 0:00:18]}  Ra3 {[%clk 0:00:35]} 53. Rg8+ {[%clk 0:00:18]}  Kf7 {[%clk 0:00:35]} 0-1


[Site "https://www.chess.com"]

[Event "Titled Tuesday Blitz March 22 Early 2022"]
[White "Mkrtchyan, Mariam"]
[Black "Jaferian, Koosha"]
[WhiteFideId "13310828"]
[BlackFideId "12507440"]
[WhiteElo "1984"]
[BlackElo "2030"]
[Result "1-0"]
[Round "03"]
[TimeControl "180+1"]
[Date "2022.03.22"]
[WhiteClock "0:00:52"]
[BlackClock "0:00:09"]

1. Nf3 {[%clk 0:03:00]}  d5 {[%clk 0:02:59]} 2. g3 {[%clk 0:02:59]}  g6 {[%clk 0:03:00]} 3. Bg2 {[%clk 0:02:59]}  Bg7 {[%clk 0:03:00]} 4. O-O {[%clk 0:02:59]}  e5 {[%clk 0:03:01]} 5. d3 {[%clk 0:02:56]}  Ne7 {[%clk 0:03:00]} 6. Nbd2 {[%clk 0:02:56]}  O-O {[%clk 0:03:00]} 7. e4 {[%clk 0:02:56]}  c6 {[%clk 0:03:01]} 8. Re1 {[%clk 0:02:55]}  Qc7 {[%clk 0:03:01]} 9. c3 {[%clk 0:02:55]}  h6 {[%clk 0:02:59]} 10. Qc2 {[%clk 0:02:55]}  Be6 {[%clk 0:02:59]} 11. d4 {[%clk 0:02:50]}  Nd7 {[%clk 0:02:54]} 12. h3 {[%clk 0:02:35]}  Rad8 {[%clk 0:02:35]} 13. dxe5 {[%clk 0:02:33]}  Nxe5 {[%clk 0:02:35]} 14. Nd4 {[%clk 0:02:29]}  Kh7 {[%clk 0:01:46]} 15. f4 {[%clk 0:02:06]}  Nc4 {[%clk 0:01:41]} 16. exd5 {[%clk 0:01:40]}  Bxd5 {[%clk 0:01:29]} 17. Nxc4 {[%clk 0:01:35]}  Bxc4 {[%clk 0:01:26]} 18. Be3 {[%clk 0:01:34]}  Bd5 {[%clk 0:01:21]} 19. Rad1 {[%clk 0:01:32]}  Bxg2 {[%clk 0:01:21]} 20. Qxg2 {[%clk 0:01:31]}  Nd5 {[%clk 0:01:22]} 21. Bf2 {[%clk 0:01:30]}  Rfe8 {[%clk 0:01:19]} 22. Qf3 {[%clk 0:01:22]}  a6 {[%clk 0:00:54]} 23. Kg2 {[%clk 0:01:17]}  Nb6 {[%clk 0:00:47]} 24. f5 {[%clk 0:01:13]}  Nc4 {[%clk 0:00:47]} 25. fxg6+ {[%clk 0:01:10]}  fxg6 {[%clk 0:00:47]} 26. Ne6 {[%clk 0:01:05]}  Rxe6 {[%clk 0:00:40]} 27. Rxe6 {[%clk 0:01:04]}  Rf8 {[%clk 0:00:35]} 28. Qe2 {[%clk 0:01:02]}  Qf7 {[%clk 0:00:31]} 29. Re7 {[%clk 0:00:53]}  Qf5 {[%clk 0:00:17]} 30. Rdd7 {[%clk 0:00:53]}  Rh8 {[%clk 0:00:09]} 31. Rxg7# {[%clk 0:00:52]} 1-0


[Site "https://www.chess.com"]

[Event "Titled Tuesday Blitz March 22 Early 2022"]
[White "Narayanan.S.L"]
[Black "Jaracz, Pawel"]
[WhiteFideId "5058422"]
[BlackFideId "1102222"]
[WhiteElo "2494"]
[BlackElo "2429"]
[Result "1-0"]
[Round "03"]
[TimeControl "180+1"]
[Date "2022.03.22"]
[WhiteClock "0:00:49"]
[BlackClock "0:00:30"]

1. b3 {[%clk 0:03:00]}  a5 {[%clk 0:02:58]} 2. a4 {[%clk 0:02:58]}  h5 {[%clk 0:02:58]} 3. h4 {[%clk 0:02:58]}  Na6 {[%clk 0:02:58]} 4. Nh3 {[%clk 0:02:58]}  Nb4 {[%clk 0:02:58]} 5. Ng5 {[%clk 0:02:58]}  f6 {[%clk 0:02:57]} 6. c3 {[%clk 0:02:57]}  fxg5 {[%clk 0:02:35]} 7. cxb4 {[%clk 0:02:56]}  e5 {[%clk 0:02:35]} 8. bxa5 {[%clk 0:02:45]}  gxh4 {[%clk 0:02:32]} 9. Qc2 {[%clk 0:02:44]}  Ra6 {[%clk 0:02:19]} 10. e3 {[%clk 0:02:41]}  Rc6 {[%clk 0:02:17]} 11. Nc3 {[%clk 0:02:41]}  Bb4 {[%clk 0:02:14]} 12. Bb5 {[%clk 0:02:40]}  Bxc3 {[%clk 0:02:11]} 13. dxc3 {[%clk 0:02:39]}  Rf6 {[%clk 0:02:10]} 14. Bb2 {[%clk 0:02:33]}  c6 {[%clk 0:02:09]} 15. Bd3 {[%clk 0:02:31]}  d5 {[%clk 0:02:08]} 16. O-O-O {[%clk 0:02:31]}  Qe7 {[%clk 0:01:52]} 17. Rxh4 {[%clk 0:02:21]}  g5 {[%clk 0:01:46]} 18. Bg6+ {[%clk 0:02:09]}  Kf8 {[%clk 0:01:37]} 19. Rxh5 {[%clk 0:02:09]}  Rxh5 {[%clk 0:01:34]} 20. Bxh5 {[%clk 0:02:09]}  g4 {[%clk 0:01:34]} 21. f3 {[%clk 0:01:58]}  Bf5 {[%clk 0:01:28]} 22. e4 {[%clk 0:01:56]}  dxe4 {[%clk 0:01:28]} 23. fxe4 {[%clk 0:01:56]}  Be6 {[%clk 0:01:27]} 24. c4 {[%clk 0:01:46]}  Qc5 {[%clk 0:01:15]} 25. Kb1 {[%clk 0:01:05]}  Rf2 {[%clk 0:01:12]} 26. Ba3 {[%clk 0:01:05]}  Qxa3 {[%clk 0:01:11]} 27. Qxf2+ {[%clk 0:01:05]}  Ke7 {[%clk 0:01:11]} 28. Qb2 {[%clk 0:01:00]}  Qc5 {[%clk 0:01:11]} 29. Qd2 {[%clk 0:00:59]}  Kf6 {[%clk 0:00:42]} 30. Rf1+ {[%clk 0:00:58]}  Ke7 {[%clk 0:00:41]} 31. Bxg4 {[%clk 0:00:57]}  Bxg4 {[%clk 0:00:36]} 32. Qg5+ {[%clk 0:00:57]}  Kd6 {[%clk 0:00:33]} 33. Qd8+ {[%clk 0:00:54]}  Bd7 {[%clk 0:00:33]} 34. Qxg8 {[%clk 0:00:52]}  Qe3 {[%clk 0:00:32]} 35. Qf8+ {[%clk 0:00:49]}  Kc7 {[%clk 0:00:32]} 36. Qf3 {[%clk 0:00:50]}  Qd2 {[%clk 0:00:30]} 37. Rd1 {[%clk 0:00:49]}  Qxa5 {[%clk 0:00:30]} 38. Qf7 {[%clk 0:00:49]} 1-0


[Site "https://www.chess.com"]

[Event "Titled Tuesday Blitz March 22 Early 2022"]
[White "Obolentseva, Alexandra"]
[Black "Li, Xueyi"]
[WhiteFideId "24153648"]
[BlackFideId "8605912"]
[WhiteElo "2113"]
[BlackElo "2091"]
[Result "1-0"]
[Round "03"]
[TimeControl "180+1"]
[Date "2022.03.22"]
[WhiteClock "0:00:51"]
[BlackClock "0:00:53"]

1. d4 {[%clk 0:02:57]}  d5 {[%clk 0:02:58]} 2. c4 {[%clk 0:02:55]}  c6 {[%clk 0:02:58]} 3. Nf3 {[%clk 0:02:55]}  Nf6 {[%clk 0:02:58]} 4. Nc3 {[%clk 0:02:55]}  e6 {[%clk 0:02:58]} 5. Bg5 {[%clk 0:02:54]}  dxc4 {[%clk 0:02:57]} 6. e4 {[%clk 0:02:54]}  b5 {[%clk 0:02:57]} 7. e5 {[%clk 0:02:55]}  h6 {[%clk 0:02:57]} 8. Bh4 {[%clk 0:02:55]}  g5 {[%clk 0:02:57]} 9. Nxg5 {[%clk 0:02:55]}  hxg5 {[%clk 0:02:58]} 10. Bxg5 {[%clk 0:02:56]}  Nbd7 {[%clk 0:02:58]} 11. exf6 {[%clk 0:02:57]}  Bb7 {[%clk 0:02:57]} 12. g3 {[%clk 0:02:57]}  c5 {[%clk 0:02:53]} 13. d5 {[%clk 0:02:57]}  Qb6 {[%clk 0:02:52]} 14. Bg2 {[%clk 0:02:56]}  O-O-O {[%clk 0:02:41]} 15. O-O {[%clk 0:02:53]}  b4 {[%clk 0:02:41]} 16. Rb1 {[%clk 0:02:53]}  Qa6 {[%clk 0:02:40]} 17. dxe6 {[%clk 0:02:43]}  Bxg2 {[%clk 0:02:39]} 18. e7 {[%clk 0:02:33]}  Bxf1 {[%clk 0:02:36]} 19. Qd5 {[%clk 0:02:15]}  Bxe7 {[%clk 0:01:37]} 20. fxe7 {[%clk 0:02:13]}  Bd3 {[%clk 0:01:37]} 21. Qa8+ {[%clk 0:02:01]}  Nb8 {[%clk 0:01:37]} 22. exd8=Q+ {[%clk 0:01:27]}  Rxd8 {[%clk 0:01:36]} 23. Bxd8 {[%clk 0:01:09]}  Bxb1 {[%clk 0:01:20]} 24. Nd5 {[%clk 0:01:02]}  Qd6 {[%clk 0:00:53]} 25. Bc7 {[%clk 0:00:51]} 1-0


[Site "https://www.chess.com"]

[Event "Titled Tuesday Blitz March 22 Early 2022"]
[White "Oganian, Miran"]
[Black "Ljukin, Sergei"]
[WhiteFideId "4122488"]
[BlackFideId "14102200"]
[WhiteElo "2357"]
[BlackElo "2312"]
[Result "0-1"]
[Round "03"]
[TimeControl "180+1"]
[Date "2022.03.22"]
[WhiteClock "0:00:08"]
[BlackClock "0:00:13"]

1. e4 {[%clk 0:02:59]}  e6 {[%clk 0:02:54]} 2. d4 {[%clk 0:02:59]}  d5 {[%clk 0:02:54]} 3. Bd3 {[%clk 0:02:59]}  dxe4 {[%clk 0:02:52]} 4. Bxe4 {[%clk 0:03:00]}  Nf6 {[%clk 0:02:53]} 5. Bf3 {[%clk 0:03:00]}  Nbd7 {[%clk 0:02:53]} 6. Ne2 {[%clk 0:03:00]}  Bd6 {[%clk 0:02:54]} 7. O-O {[%clk 0:02:50]}  e5 {[%clk 0:02:52]} 8. Nbc3 {[%clk 0:02:49]}  O-O {[%clk 0:02:51]} 9. Bg5 {[%clk 0:02:46]}  h6 {[%clk 0:02:46]} 10. Bh4 {[%clk 0:02:45]}  Re8 {[%clk 0:02:43]} 11. dxe5 {[%clk 0:02:18]}  Nxe5 {[%clk 0:02:42]} 12. Nd4 {[%clk 0:02:18]}  Nxf3+ {[%clk 0:02:26]} 13. Nxf3 {[%clk 0:02:07]}  Bg4 {[%clk 0:02:26]} 14. h3 {[%clk 0:02:06]}  Bh5 {[%clk 0:02:25]} 15. Nd5 {[%clk 0:01:53]}  g5 {[%clk 0:01:56]} 16. Nxf6+ {[%clk 0:01:53]}  Qxf6 {[%clk 0:01:54]} 17. Bg3 {[%clk 0:01:53]}  Rad8 {[%clk 0:01:49]} 18. Re1 {[%clk 0:00:57]}  Rxe1+ {[%clk 0:01:45]} 19. Qxe1 {[%clk 0:00:57]}  Bxf3 {[%clk 0:01:44]} 20. gxf3 {[%clk 0:00:57]}  Qxf3 {[%clk 0:01:43]} 21. Qd1 {[%clk 0:00:56]}  Qf6 {[%clk 0:01:32]} 22. Qg4 {[%clk 0:00:52]}  Qxb2 {[%clk 0:01:21]} 23. Re1 {[%clk 0:00:51]}  Qf6 {[%clk 0:01:06]} 24. h4 {[%clk 0:00:50]}  Bxg3 {[%clk 0:00:31]} 25. Qxg3 {[%clk 0:00:50]}  Rd4 {[%clk 0:00:30]} 26. Qxc7 {[%clk 0:00:40]}  Rxh4 {[%clk 0:00:19]} 27. Qc5 {[%clk 0:00:33]}  Qf3 {[%clk 0:00:15]} 28. Re8+ {[%clk 0:00:11]}  Kh7 {[%clk 0:00:14]} 29. Qf5+ {[%clk 0:00:07]}  Qxf5 {[%clk 0:00:13]} 30. Kf1 {[%clk 0:00:08]}  Qf3 {[%clk 0:00:13]} 31. Ke1 {[%clk 0:00:08]}  Rh1+ {[%clk 0:00:13]} 32. Kd2 {[%clk 0:00:08]}  Rd1# {[%clk 0:00:13]} 0-1


[Site "https://www.chess.com"]

[Event "Titled Tuesday Blitz March 22 Early 2022"]
[White "Olsen, Filip Boe"]
[Black "Tari, Aryan"]
[WhiteFideId "1440640"]
[BlackFideId "1510045"]
[WhiteElo "2524"]
[BlackElo "2900"]
[Result "0-1"]
[Round "03"]
[TimeControl "180+1"]
[Date "2022.03.22"]
[WhiteClock "0:00:19"]
[BlackClock "0:00:41"]

1. d4 {[%clk 0:03:00]}  d5 {[%clk 0:02:59]} 2. Nf3 {[%clk 0:03:01]}  Nf6 {[%clk 0:02:59]} 3. Bf4 {[%clk 0:03:00]}  c5 {[%clk 0:02:55]} 4. e3 {[%clk 0:02:59]}  Nc6 {[%clk 0:02:56]} 5. Nbd2 {[%clk 0:02:59]}  g6 {[%clk 0:02:55]} 6. c3 {[%clk 0:02:53]}  Nd7 {[%clk 0:02:53]} 7. Bb5 {[%clk 0:02:49]}  Bg7 {[%clk 0:02:53]} 8. O-O {[%clk 0:02:49]}  O-O {[%clk 0:02:53]} 9. Re1 {[%clk 0:02:28]}  Qb6 {[%clk 0:02:43]} 10. Qb3 {[%clk 0:01:51]}  a6 {[%clk 0:02:15]} 11. Bf1 {[%clk 0:01:46]}  c4 {[%clk 0:02:01]} 12. Qc2 {[%clk 0:01:40]}  e5 {[%clk 0:01:59]} 13. dxe5 {[%clk 0:01:34]}  Ndxe5 {[%clk 0:02:00]} 14. Nxe5 {[%clk 0:01:34]}  Nxe5 {[%clk 0:02:00]} 15. Bxe5 {[%clk 0:01:34]}  Bxe5 {[%clk 0:02:00]} 16. Nf3 {[%clk 0:01:34]}  Bf5 {[%clk 0:01:58]} 17. Qd2 {[%clk 0:01:26]}  Bg7 {[%clk 0:01:58]} 18. Nd4 {[%clk 0:01:17]}  Bd7 {[%clk 0:01:57]} 19. Be2 {[%clk 0:01:13]}  Rad8 {[%clk 0:01:55]} 20. Bf3 {[%clk 0:01:14]}  Bc8 {[%clk 0:01:47]} 21. Rad1 {[%clk 0:01:13]}  h5 {[%clk 0:01:47]} 22. Qc1 {[%clk 0:01:09]}  Rfe8 {[%clk 0:01:41]} 23. Ne2 {[%clk 0:01:09]}  Re5 {[%clk 0:01:25]} 24. Nf4 {[%clk 0:01:04]}  Qc5 {[%clk 0:01:19]} 25. Rd2 {[%clk 0:00:44]}  Bh6 {[%clk 0:01:17]} 26. Red1 {[%clk 0:00:38]}  Be6 {[%clk 0:00:52]} 27. h3 {[%clk 0:00:22]}  Rxe3 {[%clk 0:00:48]} 28. Nxe6 {[%clk 0:00:16]}  Rxe6 {[%clk 0:00:45]} 29. Rxd5 {[%clk 0:00:16]}  Bxc1 {[%clk 0:00:40]} 30. Rxc5 {[%clk 0:00:16]}  Rxd1+ {[%clk 0:00:41]} 31. Bxd1 {[%clk 0:00:16]}  Re1+ {[%clk 0:00:41]} 32. Kh2 {[%clk 0:00:17]}  Rxd1 {[%clk 0:00:42]} 33. Rxc4 {[%clk 0:00:18]}  Bxb2 {[%clk 0:00:42]} 34. Rb4 {[%clk 0:00:18]}  Bxc3 {[%clk 0:00:41]} 35. Rxb7 {[%clk 0:00:19]}  Rd2 {[%clk 0:00:41]} 0-1


[Site "https://www.chess.com"]

[Event "Titled Tuesday Blitz March 22 Early 2022"]
[White "Paravyan, David"]
[Black "Nenezic, Marko"]
[WhiteFideId "4194985"]
[BlackFideId "912123"]
[WhiteElo "2569"]
[BlackElo "2457"]
[Result "1-0"]
[Round "03"]
[TimeControl "180+1"]
[Date "2022.03.22"]
[WhiteClock "0:00:18"]
[BlackClock "0:00:05"]

1. e4 {[%clk 0:03:00]}  g6 {[%clk 0:02:53]} 2. d4 {[%clk 0:02:59]}  Bg7 {[%clk 0:02:54]} 3. Nf3 {[%clk 0:02:58]}  a6 {[%clk 0:02:54]} 4. c4 {[%clk 0:02:57]}  d6 {[%clk 0:02:54]} 5. Nc3 {[%clk 0:02:57]}  Nd7 {[%clk 0:02:54]} 6. Be2 {[%clk 0:02:56]}  e5 {[%clk 0:02:54]} 7. O-O {[%clk 0:02:55]}  Ngf6 {[%clk 0:02:54]} 8. Re1 {[%clk 0:02:54]}  O-O {[%clk 0:02:54]} 9. Bf1 {[%clk 0:02:51]}  Re8 {[%clk 0:02:53]} 10. d5 {[%clk 0:02:38]}  a5 {[%clk 0:02:53]} 11. Rb1 {[%clk 0:02:32]}  Nc5 {[%clk 0:02:51]} 12. b3 {[%clk 0:02:29]}  Bd7 {[%clk 0:02:35]} 13. a3 {[%clk 0:02:11]}  Rf8 {[%clk 0:02:34]} 14. Qc2 {[%clk 0:02:00]}  a4 {[%clk 0:02:21]} 15. b4 {[%clk 0:02:00]}  Nb3 {[%clk 0:02:21]} 16. Bg5 {[%clk 0:01:41]}  h6 {[%clk 0:02:20]} 17. Bh4 {[%clk 0:01:39]}  g5 {[%clk 0:02:18]} 18. Bg3 {[%clk 0:01:39]}  Nh5 {[%clk 0:02:16]} 19. Rbd1 {[%clk 0:01:18]}  g4 {[%clk 0:02:03]} 20. Nh4 {[%clk 0:01:14]}  Nd4 {[%clk 0:02:03]} 21. Qc1 {[%clk 0:01:06]}  Qg5 {[%clk 0:01:31]} 22. Nb5 {[%clk 0:00:56]}  Bxb5 {[%clk 0:01:20]} 23. cxb5 {[%clk 0:00:57]}  Rfc8 {[%clk 0:00:50]} 24. Qc4 {[%clk 0:00:41]}  Bf6 {[%clk 0:00:32]} 25. Bd3 {[%clk 0:00:35]}  Qg7 {[%clk 0:00:28]} 26. Nf5 {[%clk 0:00:26]}  Nxf5 {[%clk 0:00:26]} 27. exf5 {[%clk 0:00:27]}  Be7 {[%clk 0:00:20]} 28. Be4 {[%clk 0:00:27]}  Nf6 {[%clk 0:00:20]} 29. Rc1 {[%clk 0:00:27]}  Bd8 {[%clk 0:00:15]} 30. Kh1 {[%clk 0:00:22]}  h5 {[%clk 0:00:15]} 31. f3 {[%clk 0:00:21]}  h4 {[%clk 0:00:10]} 32. Bxh4 {[%clk 0:00:14]}  Nxe4 {[%clk 0:00:10]} 33. Rxe4 {[%clk 0:00:14]}  Bxh4 {[%clk 0:00:09]} 34. Rxg4 {[%clk 0:00:15]}  Bg5 {[%clk 0:00:10]} 35. h4 {[%clk 0:00:15]}  Bxc1 {[%clk 0:00:08]} 36. Rxg7+ {[%clk 0:00:16]}  Kxg7 {[%clk 0:00:08]} 37. Qxc1 {[%clk 0:00:17]}  f6 {[%clk 0:00:07]} 38. Kh2 {[%clk 0:00:17]}  Rab8 {[%clk 0:00:04]} 39. Qc4 {[%clk 0:00:17]}  Ra8 {[%clk 0:00:05]} 40. Qg4+ {[%clk 0:00:18]}  Kf7 {[%clk 0:00:05]} 41. Qg6+ {[%clk 0:00:18]} 1-0


[Site "https://www.chess.com"]